{"text_format":"3","workbook":"xlsx","n_sheets":1,"sheets":["СТОИМОСТЬ РЕМОНТА"],"not_rendered":{"images":2,"defined_names":4},"read":"whole","date_system":"1900"}

{"sheet":"СТОИМОСТЬ РЕМОНТА","index":0,"n_rows":28,"n_cols":8,"rows_kept":28,"merged":[[25,1,25,5],[26,1,26,5],[27,1,27,5]]}
[null,"ЛИСТ РАСЧЕТА СТОИМОСТИ РЕМОНТА КУХНИ"]
[]
[null,"Категория","Наименование","Количество","Расчетная цена","Фактическая цена","Расчетная стоимость","Фактическая стоимость"]
[null,"Шкафы","Напольные шкафы: модульные (количество в погонных метрах)",25,{"v":5,"d":"5.00 ₽"},null,{"$f":"Данные[[#This Row],[Количество]]*Данные[[#This Row],[Расчетная цена]]","v":{"v":125,"d":"125 ₽"}},{"$f":"Данные[[#This Row],[Количество]]*Данные[[#This Row],[Фактическая цена]]","v":{"v":0,"d":"0 ₽"}}]
[null,"Шкафы","Навесные шкафы: модульные (количество в погонных метрах)",25,{"v":3.5,"d":"3.50 ₽"},null,{"$f":"Данные[[#This Row],[Количество]]*Данные[[#This Row],[Расчетная цена]]","v":{"v":87.5,"d":"88 ₽"}},{"$f":"Данные[[#This Row],[Количество]]*Данные[[#This Row],[Фактическая цена]]","v":{"v":0,"d":"0 ₽"}}]
[null,"Уборка","Посудомоечная машина: стандартная",1,{"v":250,"d":"250.00 ₽"},null,{"$f":"Данные[[#This Row],[Количество]]*Данные[[#This Row],[Расчетная цена]]","v":{"v":250,"d":"250 ₽"}},{"$f":"Данные[[#This Row],[Количество]]*Данные[[#This Row],[Фактическая цена]]","v":{"v":0,"d":"0 ₽"}}]
[null,"Уборка","Измельчитель пищевых отходов: стандартный",1,{"v":175,"d":"175.00 ₽"},null,{"$f":"Данные[[#This Row],[Количество]]*Данные[[#This Row],[Расчетная цена]]","v":{"v":175,"d":"175 ₽"}},{"$f":"Данные[[#This Row],[Количество]]*Данные[[#This Row],[Фактическая цена]]","v":{"v":0,"d":"0 ₽"}}]
[null,"Приготовление пищи","Кухонная плита: отдельно стоящая",1,{"v":375,"d":"375.00 ₽"},null,{"$f":"Данные[[#This Row],[Количество]]*Данные[[#This Row],[Расчетная цена]]","v":{"v":375,"d":"375 ₽"}},{"$f":"Данные[[#This Row],[Количество]]*Данные[[#This Row],[Фактическая цена]]","v":{"v":0,"d":"0 ₽"}}]
[null,"Приготовление пищи","Микроволновая печь: стандартная",1,{"v":300,"d":"300.00 ₽"},null,{"$f":"Данные[[#This Row],[Количество]]*Данные[[#This Row],[Расчетная цена]]","v":{"v":300,"d":"300 ₽"}},{"$f":"Данные[[#This Row],[Количество]]*Данные[[#This Row],[Фактическая цена]]","v":{"v":0,"d":"0 ₽"}}]
[null,"Рабочие поверхности","Сплошная столешница (количество в погонных метрах)",23,{"v":10,"d":"10.00 ₽"},null,{"$f":"Данные[[#This Row],[Количество]]*Данные[[#This Row],[Расчетная цена]]","v":{"v":230,"d":"230 ₽"}},{"$f":"Данные[[#This Row],[Количество]]*Данные[[#This Row],[Фактическая цена]]","v":{"v":0,"d":"0 ₽"}}]
[null,"Двери","Межкомнатная: фанерный лист",1,{"v":65,"d":"65.00 ₽"},null,{"$f":"Данные[[#This Row],[Количество]]*Данные[[#This Row],[Расчетная цена]]","v":{"v":65,"d":"65 ₽"}},{"$f":"Данные[[#This Row],[Количество]]*Данные[[#This Row],[Фактическая цена]]","v":{"v":0,"d":"0 ₽"}}]
[null,"Дополнительные товары","Оборудование: водонагреватель проточный",1,{"v":120,"d":"120.00 ₽"},null,{"$f":"Данные[[#This Row],[Количество]]*Данные[[#This Row],[Расчетная цена]]","v":{"v":120,"d":"120 ₽"}},{"$f":"Данные[[#This Row],[Количество]]*Данные[[#This Row],[Фактическая цена]]","v":{"v":0,"d":"0 ₽"}}]
[null,"Дополнительные товары","Оборудование: дозатор мыла",1,{"v":40,"d":"40.00 ₽"},null,{"$f":"Данные[[#This Row],[Количество]]*Данные[[#This Row],[Расчетная цена]]","v":{"v":40,"d":"40 ₽"}},{"$f":"Данные[[#This Row],[Количество]]*Данные[[#This Row],[Фактическая цена]]","v":{"v":0,"d":"0 ₽"}}]
[null,"Краны","Кран: однорычажный, стандартный",1,{"v":130,"d":"130.00 ₽"},null,{"$f":"Данные[[#This Row],[Количество]]*Данные[[#This Row],[Расчетная цена]]","v":{"v":130,"d":"130 ₽"}},{"$f":"Данные[[#This Row],[Количество]]*Данные[[#This Row],[Фактическая цена]]","v":{"v":0,"d":"0 ₽"}}]
[null,"Покрытие пола","Ламинат (количество в квадратных метрах)",165,{"v":3.5,"d":"3.50 ₽"},null,{"$f":"Данные[[#This Row],[Количество]]*Данные[[#This Row],[Расчетная цена]]","v":{"v":577.5,"d":"578 ₽"}},{"$f":"Данные[[#This Row],[Количество]]*Данные[[#This Row],[Фактическая цена]]","v":{"v":0,"d":"0 ₽"}}]
[null,"Стирка","Стиральная машина: стандартная",1,{"v":500,"d":"500.00 ₽"},null,{"$f":"Данные[[#This Row],[Количество]]*Данные[[#This Row],[Расчетная цена]]","v":{"v":500,"d":"500 ₽"}},{"$f":"Данные[[#This Row],[Количество]]*Данные[[#This Row],[Фактическая цена]]","v":{"v":0,"d":"0 ₽"}}]
[null,"Стирка","Сушильная машина: стандартная",1,{"v":375,"d":"375.00 ₽"},null,{"$f":"Данные[[#This Row],[Количество]]*Данные[[#This Row],[Расчетная цена]]","v":{"v":375,"d":"375 ₽"}},{"$f":"Данные[[#This Row],[Количество]]*Данные[[#This Row],[Фактическая цена]]","v":{"v":0,"d":"0 ₽"}}]
[null,"Освещение","Светильники: встраиваемые",4,{"v":35,"d":"35.00 ₽"},null,{"$f":"Данные[[#This Row],[Количество]]*Данные[[#This Row],[Расчетная цена]]","v":{"v":140,"d":"140 ₽"}},{"$f":"Данные[[#This Row],[Количество]]*Данные[[#This Row],[Фактическая цена]]","v":{"v":0,"d":"0 ₽"}}]
[null,"Холодильники","Холодильник: отдельный, элитный",1,{"v":1200,"d":"1,200.00 ₽"},null,{"$f":"Данные[[#This Row],[Количество]]*Данные[[#This Row],[Расчетная цена]]","v":{"v":1200,"d":"1,200 ₽"}},{"$f":"Данные[[#This Row],[Количество]]*Данные[[#This Row],[Фактическая цена]]","v":{"v":0,"d":"0 ₽"}}]
[null,"Мойки","Двойная из нержавеющей стали, элитная",1,{"v":125,"d":"125.00 ₽"},null,{"$f":"Данные[[#This Row],[Количество]]*Данные[[#This Row],[Расчетная цена]]","v":{"v":125,"d":"125 ₽"}},{"$f":"Данные[[#This Row],[Количество]]*Данные[[#This Row],[Фактическая цена]]","v":{"v":0,"d":"0 ₽"}}]
[null,"Вытяжка","Купольная: проточная",1,{"v":180,"d":"180.00 ₽"},null,{"$f":"Данные[[#This Row],[Количество]]*Данные[[#This Row],[Расчетная цена]]","v":{"v":180,"d":"180 ₽"}},{"$f":"Данные[[#This Row],[Количество]]*Данные[[#This Row],[Фактическая цена]]","v":{"v":0,"d":"0 ₽"}}]
[null,"Стены","Стеновая панель (количество в квадратных метрах)",70,{"v":2,"d":"2.00 ₽"},null,{"$f":"Данные[[#This Row],[Количество]]*Данные[[#This Row],[Расчетная цена]]","v":{"v":140,"d":"140 ₽"}},{"$f":"Данные[[#This Row],[Количество]]*Данные[[#This Row],[Фактическая цена]]","v":{"v":0,"d":"0 ₽"}}]
[null,"Окна","Раздвижные",2,{"v":120,"d":"120.00 ₽"},null,{"$f":"Данные[[#This Row],[Количество]]*Данные[[#This Row],[Расчетная цена]]","v":{"v":240,"d":"240 ₽"}},{"$f":"Данные[[#This Row],[Количество]]*Данные[[#This Row],[Фактическая цена]]","v":{"v":0,"d":"0 ₽"}}]
[null,"Другое",{"$nulls":4},{"$f":"Данные[[#This Row],[Количество]]*Данные[[#This Row],[Расчетная цена]]","v":{"v":0,"d":"0 ₽"}},{"$f":"Данные[[#This Row],[Количество]]*Данные[[#This Row],[Фактическая цена]]","v":{"v":0,"d":"0 ₽"}}]
[null,"Итог",null,null,{"$f":"SUBTOTAL(109,Данные[Расчетная цена])","v":{"v":4014,"d":"4,014.00 ₽"}},{"$f":"SUBTOTAL(109,Данные[Фактическая цена])","v":{"v":0,"d":"0.00 ₽"}},{"$f":"SUBTOTAL(109,Данные[Расчетная стоимость])","v":{"v":5375,"d":"5,375.00 ₽"}},{"$f":"SUBTOTAL(109,Данные[Фактическая стоимость])","v":{"v":0,"d":"0.00 ₽"}}]
[null,"Промежуточная сумма",{"$nulls":4},{"$f":"SUBTOTAL(109,Данные[Расчетная стоимость])","v":{"v":5375,"d":"5,375.00 ₽"}},{"$f":"SUBTOTAL(109,Данные[Фактическая стоимость])","v":{"v":0,"d":"0.00 ₽"}}]
[null,"Непредвиденные расходы — 30 %",{"$nulls":4},{"$f":"G26*0.3","v":{"v":1612.5,"d":"1,612.50 ₽"}},{"$f":"H26*0.3","v":{"v":0,"d":"0.00 ₽"}}]
[null,"Итого",{"$nulls":4},{"$f":"SUM(G26:G27)","v":{"v":6987.5,"d":"6,987.50 ₽"}},{"$f":"SUM(H26:H27)","v":{"v":0,"d":"0.00 ₽"}}]